Workbook

Sheet паспорт
A1: ПАТ "УКРТРАНСГАЗ" | G1: ПАСПОРТ ФІЗИКО-ХІМІЧНИХ ПОКАЗНИКІВ ПРИРОДНОГО ГАЗУ № 860
A2: Філія "УМГ "Черкаситрансгаз" | G2: переданого Кременчуцьким ЛВУМГ та прийнятого ПАТ "Полтавагаз", ПАТ "Кременчукгаз", ДП "Укравтогаз", ТОВ "Кременчукавтогаз"
A3: Кременчуцьке ЛВУМГ | G3: Маршрут № 860
A4: Вимірювальна хіміко-аналітична лабораторія
A5: Кременчуцького промислового майданчика
A6: Свідоцтво № 0612 КФ від 30.12.15р. чинне до 20.06.19р. | K6: по газопроводу "Диканька-Кременчук-Кривий Ріг" | V6: за період з | X6: 2017-02-01 | Z6: по | AA6: 2017-02-28
A8: Число місяця | B8: Компонентний склад, % мол. | N8: Фізико-хімічні показники газу обчислені на основі компонентного складу, 101,325 кПа | X8: Температура точки роси за вологою (Р = 3.92 МПа), °С | Y8: Температура точки роси за вуглеводнями, °С | Z8: Вміст сірководню, г/м3 | AA8: Вміст меркаптанової сірки, г/м3 | AB8: Вміст механічних домішок, г/м3
N9: Густина абсолютна, кг/м3,при 20 °С, | O9: Температура вимірювання/згоряння при 20/25°С
B10: метан, С1 | C10: етан, С2 | D10: пропан, С3 | E10: ізо-бутан, і-С4 | F10: н-бутан, н-С4 | G10: нео-пентан, нео-С5 | H10: ізо-пентан, і-С5 | I10: н-пентан, н-С5 | J10: гексани та вищі, С6+ | K10: кисень, О2 | L10: азот, N2 | M10: діоксид вуглецю, CО2 | O10: Теплота згоряння нижча | R10: Теплота згоряння вища | U10: Число Воббе вище
O11: ккал/м³ | P11: МДж/м³ | Q11: кВт⋅год/м³ | R11: ккал/м³ | S11: МДж/м³ | T11: кВт⋅год/м³ | U11: ккал/м³ | V11: МДж/м³ | W11: кВт⋅год/м³
A12: 1 | O12: =P12*238.8459 -> 8237.795091 | P12: 34.49 | Q12: =P12/3.6 -> 9.580555556 | R12: =S12*238.8459 -> 9126.301839 | S12: 38.21 | T12: =S12/3.6 -> 10.61388889 | AC12: =SUM(B12:M12)+$K$43+$N$43 -> 0
A13: 2 | O13: =P13*238.8459 -> 8237.795091 | P13: 34.49 | Q13: 9.580555556 | R13: =S13*238.8459 -> 9126.301839 | S13: 38.21 | T13: 10.61388889 | AC13: 0
A14: 3 | O14: 8237.795091 | P14: 34.49 | Q14: 9.580555556 | R14: 9126.301839 | S14: 38.21 | T14: 10.61388889 | AC14: 0 | AD14: =IF(AC14=100,"ОК"," ") -> 
A15: 4 | O15: 8237.795091 | P15: 34.49 | Q15: 9.580555556 | R15: 9126.301839 | S15: 38.21 | T15: 10.61388889 | AC15: 0 | AD15: =IF(AC15=100,"ОК"," ") -> 
A16: 5 | O16: 8237.795091 | P16: 34.49 | Q16: 9.580555556 | R16: 9126.301839 | S16: 38.21 | T16: 10.61388889 | AC16: 0
A17: 6 | B17: 90.985 | C17: 4.343 | D17: 1.084 | E17: 0.121 | F17: 0.203 | G17: 0.004 | H17: 0.052 | I17: 0.043 | J17: 0.058 | K17: 0.001 | L17: 1.65 | M17: 1.456 | N17: 0,7414 | O17: 8244.960468 | P17: 34.52 | Q17: 9.588888889 | R17: 9133.467216 | S17: 38.24 | T17: 10.62222222 | U17: 11 643 | V17: 48,75 | W17: =V17/3.6 -> 13.54166667 | X17: -12,3 | AC17: 100 | AD17: ОК
A18: 7 | O18: 8244.960468 | P18: 34.52 | Q18: 9.588888889 | R18: 9133.467216 | S18: 38.24 | T18: 10.62222222 | AC18: 0
A19: 8 | O19: 8244.960468 | P19: 34.52 | Q19: 9.588888889 | R19: 9133.467216 | S19: 38.24 | T19: 10.62222222 | AC19: 0
A20: 9 | O20: 8244.960468 | P20: 34.52 | Q20: 9.588888889 | R20: 9133.467216 | S20: 38.24 | T20: 10.62222222 | AC20: 0
A21: 10 | O21: 8244.960468 | P21: 34.52 | Q21: =P21/3.6 -> 9.588888889 | R21: 9133.467216 | S21: 38.24 | T21: =S21/3.6 -> 10.62222222 | AC21: 0
A22: 11 | O22: 8244.960468 | P22: 34.52 | Q22: 9.588888889 | R22: 9133.467216 | S22: 38.24 | T22: 10.62222222 | AC22: 0
A23: 12 | O23: 8244.960468 | P23: 34.52 | Q23: 9.588888889 | R23: 9133.467216 | S23: 38.24 | T23: 10.62222222 | AC23: 0
A24: 13 | B24: 91.4541 | C24: 4.1322 | D24: 1.0622 | E24: 0.1196 | F24: 0.1923 | G24: 0.0043 | H24: 0.0503 | I24: 0.0423 | J24: 0.0717 | K24: 0.0011 | L24: 1.5124 | M24: 1.3575 | N24: 0,7382 | O24: 8249.737386 | P24: 34.54 | Q24: 9.594444444 | R24: 9140.632593 | S24: 38.27 | T24: 10.63055556 | U24: 11 675 | V24: 48,88 | W24: 13.57777778 | X24: -10,7 | AC24: 100 | AD24: ОК
A25: 14 | O25: 8249.737386 | P25: 34.54 | Q25: 9.594444444 | R25: 9140.632593 | S25: 38.27 | T25: 10.63055556 | AC25: 0
A26: 15 | O26: 8249.737386 | P26: 34.54 | Q26: 9.594444444 | R26: 9140.632593 | S26: 38.27 | T26: 10.63055556 | AC26: 0
A27: 16 | O27: 8249.737386 | P27: 34.54 | Q27: =P27/3.6 -> 9.594444444 | R27: 9140.632593 | S27: 38.27 | T27: =S27/3.6 -> 10.63055556 | AC27: 0
A28: 17 | O28: 8249.737386 | P28: 34.54 | Q28: 9.594444444 | R28: 9140.632593 | S28: 38.27 | T28: 10.63055556 | AC28: 0
A29: 18 | O29: 8249.737386 | P29: 34.54 | Q29: 9.594444444 | R29: 9140.632593 | S29: 38.27 | T29: 10.63055556 | AC29: 0
A30: 19 | O30: 8249.737386 | P30: 34.54 | Q30: 9.594444444 | R30: 9140.632593 | S30: 38.27 | T30: 10.63055556 | AC30: 0
A31: 20 | B31: 90.8977 | C31: 4.3236 | D31: 1.2151 | E31: 0.1327 | F31: 0.2273 | G31: 0.0044 | H31: 0.054 | I31: 0.0449 | J31: 0.0649 | K31: 0.001 | L31: 1.3728 | M31: 1.6616 | N31: 0,7447 | O31: 8276.010435 | P31: 34.65 | Q31: 9.625 | R31: 9166.905642 | S31: 38.38 | T31: 10.66111111 | U31: 11 658 | V31: 48,81 | W31: 13.55833333 | X31: -9,6 | AC31: 100 | AD31: =IF(AC31=100,"ОК"," ") -> ОК
A32: 21 | O32: 8276.010435 | P32: 34.65 | Q32: 9.625 | R32: 9166.905642 | S32: 38.38 | T32: 10.66111111 | AC32: 0
A33: 22 | O33: 8276.010435 | P33: 34.65 | Q33: 9.625 | R33: 9166.905642 | S33: 38.38 | T33: 10.66111111 | AC33: 0
A34: 23 | O34: 8276.010435 | P34: 34.65 | Q34: =P34/3.6 -> 9.625 | R34: 9166.905642 | S34: 38.38 | T34: =S34/3.6 -> 10.66111111 | AC34: 0 | AD34: =IF(AC34=100,"ОК"," ") -> 
A35: 24 | O35: 8276.010435 | P35: 34.65 | Q35: 9.625 | R35: 9166.905642 | S35: 38.38 | T35: 10.66111111 | AC35: 0
A36: 25 | O36: 8276.010435 | P36: 34.65 | Q36: 9.625 | R36: 9166.905642 | S36: 38.38 | T36: 10.66111111 | AC36: 0
A37: 26 | O37: 8276.010435 | P37: 34.65 | Q37: 9.625 | R37: 9166.905642 | S37: 38.38 | T37: =S37/3.6 -> 10.66111111 | AC37: 0
A38: 27 | B38: 91.3612 | C38: 4.0972 | D38: 1.1122 | E38: 0.1241 | F38: 0.2032 | G38: 0.0041 | H38: 0.0497 | I38: 0.0417 | J38: 0.0557 | K38: 0.0012 | L38: 1.5297 | M38: 1.42 | N38: 0,7391 | O38: 8244.960468 | P38: 34.52 | Q38: 9.588888889 | R38: 9133.467216 | S38: 38.24 | T38: 10.62222222 | U38: 11 660 | V38: 48,82 | W38: 13.56111111 | X38: -9,1 | Z38: 0,0030 | AA38: 0,0040 | AB38: відсутні | AC38: 100 | AD38: ОК
A39: 28 | O39: 8244.960468 | P39: 34.52 | Q39: 9.588888889 | R39: 9133.467216 | S39: 38.24 | T39: 10.62222222 | AC39: 0
A40: 29 | O40: 0 | P40: 0 | Q40: =P40/3.6 -> 0 | R40: 0 | S40: 0 | T40: =S40/3.6 -> 0 | W40: 0 | AC40: 0
A41: 30 | O41: 0 | P41: 0 | Q41: =P41/3.6 -> 0 | R41: 0 | S41: 0 | T41: =S41/3.6 -> 0 | W41: 0 | AC41: 0
A42: 31 | O42: 0 | P42: 0 | Q42: =P42/3.6 -> 0 | R42: 0 | S42: 0 | T42: =S42/3.6 -> 0 | W42: 0 | AC42: 0
A43: Вміст одоранта при одоризації становить 16 г на 1 000 м³ газу | O43: =8252 -> 8252 | P43: =AVERAGEA(P12:P39) -> 34.55214286 | Q43: 9.59781746 | R43: =9141 -> 9141 | S43: =38.27 -> 38.27 | T43: 10.63253968
H44: Середньозважене значення теплоти згоряння:
B46: Начальник управління Кременчуцького ЛВУМГ Кучерук В.М. | Y46: 02.03.2017 р.
C47: Підрозділу підприємства, якому підпорядкована лабораторія | M47: прізвище | V47: підпис | Z47: дата
B48: Начальник лабораторії ВХАЛ Кучерук Н.М. | Y48: 02.03.2017 р.
C49: Лабораторія, де здійснювалось вимірювання газу | M49: прізвище | V49: підпис | Z49: дата
B50: Провідний економіст із збуту Кривулькін І.В. | Y50: 02.03.2017 р.
C51: Підрозділу, відповідального за облік газу за маршрутом | M51: прізвище | V51: підпис | Z51: дата

Sheet додаток
A2: Додаток до Паспорту фізико-хімічних показників природного газу № 860
A4: Область | B4: ГРС, прямий споживач | C4: Cередньозважене значення вищої теплоти згоряння
C5: МДж/м³ | D5: ккал/м³ | E5: кВт*год./м³
A6: Полтавська область | B6: ГРС Бутенки | C6: 38.2702772 | D6: 9140.698802 | E6: 10.63063256
B7: ГРС Сушки | C7: 38.27007028 | D7: 9140.64938 | E7: 10.63057508
B8: ГРС Козельщина | C8: 38.26976871 | D8: 9140.577351 | E8: 10.63049131
B9: ГРС Нова Галещина | C9: 38.26964975 | D9: 9140.548937 | E9: 10.63045826
B10: ГРС Фрунзівка | C10: 38.26964975 | D10: 9140.548937 | E10: 10.63045826
B11: ГРС Глобине | C11: 38.27045698 | D11: 9140.74174 | E11: 10.63068249
B12: ГРС Погреби | C12: 38.26972016 | D12: 9140.565754 | E12: 10.63047782
B13: ГРС Бугаївка | C13: 38.27043735 | D13: 9140.737053 | E13: 10.63067704
B14: ГРС Потоки | C14: 38.26923806 | D14: 9140.450608 | E14: 10.63034391
B15: ГРС Кременчук (Північний промвузол | C15: 38.27576784 | D15: 9142.010218 | E15: 10.63215773
B16: ГРС Кременчук ( Місто) | C16: 38.2703147 | D16: 9140.707758 | E16: 10.63064297
B17: ДП "Укравтогаз" | C17: 38.28016632 | D17: 9143.060778 | E17: 10.63337953
B18: ТОВ "Кременчукавтогаз" | C18: 38.27788352 | D18: 9142.51554 | E18: 10.63274542
A19: Середньозважене значення вищої теплоти згоряння по маршруту № 860 | C19: 38.27300846 | D19: 9141.351152 | E19: 10.63139124
A23: Начальник управління Кременчуцького ЛВУМГ Кучерук В.Н.
A24: Підрозділу підприємства, якому підпорядкована лабораторія | D24: прізвище | E24: підпис | F24: дата
A25: Начальник лабораторії ВХАЛ Кучерук Н.М.
A26: Лабораторія, де здійснювалось вимірювання газу | D26: прізвище | E26: підпис | F26: дата
A27: Провідний економіст із збуту Кривулькін І.В.
A28: Підрозділу, відповідального за облік газу за маршрутом | D28: прізвище | E28: підпис | F28: дата

Sheet variablesList (hidden)
A1: 3 | B1: x:\gaysin | C1: 10, 11, 24, 25, 127, 128, 132, 180, 207, 215 | D1: x:\
B2: x:\Illinci
B3: x:\Talne
